[Event "*** SCC Grand Prix: Titled Tuesday Blitz"]
[Site "Chess.com"]
[Date "2020.08.11"]
[Round "5"]
[White "Ave_Mariia"]
[Black "Alex_Belezky"]
[Result "1-0"]
[WhiteElo "2395"]
[BlackElo "2485"]
[TimeControl "180+1"]
[EndTime "10:55:34 PDT"]
[Termination "Ave_Mariia won by checkmate"]

1. d4 {[%clk 0:03:00.9]} 1... Nf6 {[%clk 0:02:56.6]} 2. c4 {[%clk 0:03:00.8]}
2... e6 {[%clk 0:02:56.6]} 3. g3 {[%clk 0:03:00.3]} 3... Bb4+ {[%clk 0:02:56.2]}
4. Bd2 {[%clk 0:03:00.1]} 4... Qe7 {[%clk 0:02:55.9]} 5. Nf3 {[%clk 0:02:58.9]}
5... Nc6 {[%clk 0:02:55.5]} 6. Nc3 {[%clk 0:02:58.4]} 6... Bxc3 {[%clk
0:02:55.1]} 7. Bxc3 {[%clk 0:02:58.7]} 7... Ne4 {[%clk 0:02:55.7]} 8. Rc1 {[%clk
0:02:58.6]} 8... Nxc3 {[%clk 0:02:55.5]} 9. Rxc3 {[%clk 0:02:58.4]} 9... d6
{[%clk 0:02:56.2]} 10. Bg2 {[%clk 0:02:57.9]} 10... O-O {[%clk 0:02:56.3]} 11.
O-O {[%clk 0:02:58.1]} 11... e5 {[%clk 0:02:56.4]} 12. d5 {[%clk 0:02:45.5]}
12... Nb8 {[%clk 0:02:56.3]} 13. b4 {[%clk 0:02:43.5]} 13... a5 {[%clk
0:02:55.8]} 14. a3 {[%clk 0:02:43]} 14... Na6 {[%clk 0:02:55.7]} 15. Qb3 {[%clk
0:02:38.8]} 15... Bg4 {[%clk 0:02:55.3]} 16. e3 {[%clk 0:02:23.4]} 16... Bxf3
{[%clk 0:02:51.2]} 17. Bxf3 {[%clk 0:02:23.5]} 17... b6 {[%clk 0:02:39.9]} 18.
Rfc1 {[%clk 0:02:19.2]} 18... axb4 {[%clk 0:02:37.1]} 19. axb4 {[%clk
0:02:20.1]} 19... Nb8 {[%clk 0:02:37.1]} 20. c5 {[%clk 0:02:14.8]} 20... bxc5
{[%clk 0:02:37.1]} 21. bxc5 {[%clk 0:02:15]} 21... Nd7 {[%clk 0:02:37.6]} 22.
cxd6 {[%clk 0:02:11.8]} 22... cxd6 {[%clk 0:02:37.7]} 23. Rc7 {[%clk 0:02:07.3]}
23... Qd8 {[%clk 0:02:36.9]} 24. R1c6 {[%clk 0:02:00.1]} 24... Nc5 {[%clk
0:02:30.1]} 25. Qb6 {[%clk 0:01:40.4]} 25... Ra6 {[%clk 0:02:13.5]} 26. Qb5
{[%clk 0:01:35]} 26... Ra2 {[%clk 0:02:06.5]} 27. Rxc5 {[%clk 0:01:15.2]} 27...
dxc5 {[%clk 0:01:58.4]} 28. Qxc5 {[%clk 0:01:15.4]} 28... e4 {[%clk 0:01:41.4]}
29. Bxe4 {[%clk 0:01:07.3]} 29... Qf6 {[%clk 0:01:41]} 30. Bc2 {[%clk
0:01:06.7]} 30... Qf3 {[%clk 0:01:32.9]} 31. Qc3 {[%clk 0:00:59.5]} 31... g6
{[%clk 0:00:27.5]} 32. e4 {[%clk 0:00:54.6]} 32... Qe2 {[%clk 0:00:19.7]} 33.
Kg2 {[%clk 0:00:43.2]} 33... Re8 {[%clk 0:00:18.9]} 34. Qf6 {[%clk 0:00:35.9]}
34... Rf8 {[%clk 0:00:15.4]} 35. Bb3 {[%clk 0:00:33.7]} 35... Rb2 {[%clk
0:00:13.5]} 36. Bc4 {[%clk 0:00:16.9]} 36... Qxe4+ {[%clk 0:00:13.2]} 37. Kh3
{[%clk 0:00:17.3]} 37... h5 {[%clk 0:00:11.6]} 38. d6 {[%clk 0:00:15.8]} 38...
Qg4+ {[%clk 0:00:10.6]} 39. Kg2 {[%clk 0:00:15.7]} 39... Qe4+ {[%clk 0:00:10.1]}
40. Kh3 {[%clk 0:00:15.7]} 40... Rd2 {[%clk 0:00:09.5]} 41. Bxf7+ {[%clk
0:00:14.8]} 41... Rxf7 {[%clk 0:00:08.5]} 42. Qxf7+ {[%clk 0:00:15]} 42... Kh8
{[%clk 0:00:08.9]} 43. Qh7# {[%clk 0:00:15.7]} 1-0

[Event "*** SCC Grand Prix: Titled Tuesday Blitz"]
[Site "Chess.com"]
[Date "2020.08.11"]
[Round "5"]
[White "Savva09022009"]
[Black "KingChess345"]
[Result "0-1"]
[WhiteElo "2326"]
[BlackElo "2185"]
[TimeControl "180+1"]
[EndTime "10:55:38 PDT"]
[Termination "KingChess345 won by checkmate"]

1. e4 {[%clk 0:03:00.9]} 1... c5 {[%clk 0:03:00.3]} 2. Nf3 {[%clk 0:03:00.3]}
2... Nc6 {[%clk 0:03:00.7]} 3. d4 {[%clk 0:02:59.9]} 3... cxd4 {[%clk
0:03:01.6]} 4. Nxd4 {[%clk 0:03:00.2]} 4... Nf6 {[%clk 0:03:02]} 5. Nc3 {[%clk
0:02:59.8]} 5... e5 {[%clk 0:03:02.3]} 6. Ndb5 {[%clk 0:02:59.3]} 6... d6 {[%clk
0:03:02.7]} 7. Bg5 {[%clk 0:02:58.6]} 7... a6 {[%clk 0:03:03]} 8. Na3 {[%clk
0:02:56.6]} 8... b5 {[%clk 0:03:03.2]} 9. Bxf6 {[%clk 0:02:55.4]} 9... gxf6
{[%clk 0:03:02.6]} 10. Nd5 {[%clk 0:02:54.9]} 10... Bg7 {[%clk 0:03:02.1]} 11.
g3 {[%clk 0:02:54.7]} 11... f5 {[%clk 0:03:01.2]} 12. Bg2 {[%clk 0:02:51.6]}
12... O-O {[%clk 0:02:57.9]} 13. exf5 {[%clk 0:02:51.2]} 13... Bxf5 {[%clk
0:02:55.2]} 14. Ne3 {[%clk 0:02:50.7]} 14... Bd7 {[%clk 0:02:51.1]} 15. c3
{[%clk 0:02:43.3]} 15... Qe7 {[%clk 0:02:44.4]} 16. O-O {[%clk 0:02:39.9]} 16...
f5 {[%clk 0:02:24.3]} 17. Nd5 {[%clk 0:02:34.1]} 17... Qd8 {[%clk 0:02:12.2]}
18. Nc2 {[%clk 0:02:26.2]} 18... Rc8 {[%clk 0:02:02.7]} 19. Qd2 {[%clk
0:02:18.1]} 19... Kh8 {[%clk 0:01:53.4]} 20. Rad1 {[%clk 0:02:03.5]} 20... a5
{[%clk 0:01:37.6]} 21. Nce3 {[%clk 0:01:49.9]} 21... f4 {[%clk 0:01:32]} 22. Nc2
{[%clk 0:01:45.4]} 22... f3 {[%clk 0:01:28.4]} 23. Bh1 {[%clk 0:01:38.4]} 23...
e4 {[%clk 0:01:06]} 24. Rfe1 {[%clk 0:01:32.8]} 24... Bf5 {[%clk 0:00:33]} 25.
Nce3 {[%clk 0:01:18]} 25... Bg6 {[%clk 0:00:32.8]} 26. a4 {[%clk 0:00:56.2]}
26... bxa4 {[%clk 0:00:20.6]} 27. Nc4 {[%clk 0:00:46.9]} 27... Ne5 {[%clk
0:00:14.7]} 28. Nxe5 {[%clk 0:00:44.5]} 28... Bxe5 {[%clk 0:00:15.6]} 29. Ne3
{[%clk 0:00:43.9]} 29... Qd7 {[%clk 0:00:14.5]} 30. Qd5 {[%clk 0:00:37.3]} 30...
Qh3 {[%clk 0:00:12.6]} 31. Nc4 {[%clk 0:00:34.5]} 31... Rc5 {[%clk 0:00:12.1]}
32. Nxe5 {[%clk 0:00:29.6]} 32... Rxd5 {[%clk 0:00:10.7]} 33. Nxg6+ {[%clk
0:00:29.9]} 33... hxg6 {[%clk 0:00:10.3]} 34. Rxd5 {[%clk 0:00:29.9]} 34... Rf7
{[%clk 0:00:04.1]} 35. Rxd6 {[%clk 0:00:23.7]} 35... Rh7 {[%clk 0:00:04.2]} 36.
Rd8+ {[%clk 0:00:21]} 36... Kg7 {[%clk 0:00:04.4]} 37. Rd7+ {[%clk 0:00:21.2]}
37... Qxd7 {[%clk 0:00:04.8]} 38. c4 {[%clk 0:00:17.4]} 38... Qh3 {[%clk
0:00:04.3]} 39. Rd1 {[%clk 0:00:17.2]} 39... Qxh2+ {[%clk 0:00:04.2]} 40. Kf1
{[%clk 0:00:17.8]} 40... Qxh1# {[%clk 0:00:05.1]} 0-1

[Event "*** SCC Grand Prix: Titled Tuesday Blitz"]
[Site "Chess.com"]
[Date "2020.08.11"]
[Round "5"]
[White "czasnaszachy"]
[Black "sertalzin"]
[Result "1-0"]
[WhiteElo "2217"]
[BlackElo "1835"]
[TimeControl "180+1"]
[EndTime "10:55:42 PDT"]
[Termination "czasnaszachy won on time"]

1. d4 {[%clk 0:02:59.6]} 1... d5 {[%clk 0:02:59.2]} 2. c4 {[%clk 0:02:59.5]}
2... c6 {[%clk 0:02:57.5]} 3. c5 {[%clk 0:02:59.4]} 3... e5 {[%clk 0:02:55.4]}
4. e3 {[%clk 0:02:57.2]} 4... e4 {[%clk 0:02:54.7]} 5. Nc3 {[%clk 0:02:56.6]}
5... f5 {[%clk 0:02:54]} 6. Nge2 {[%clk 0:02:41.5]} 6... Nf6 {[%clk 0:02:52.8]}
7. Ng3 {[%clk 0:02:40.4]} 7... b6 {[%clk 0:02:51.4]} 8. cxb6 {[%clk 0:02:40.3]}
8... axb6 {[%clk 0:02:50.1]} 9. Be2 {[%clk 0:02:39]} 9... Bd6 {[%clk 0:02:48.4]}
10. O-O {[%clk 0:02:36.7]} 10... O-O {[%clk 0:02:47.8]} 11. a3 {[%clk
0:02:17.7]} 11... Be6 {[%clk 0:02:44.7]} 12. Bd2 {[%clk 0:02:16.3]} 12... Nbd7
{[%clk 0:02:37]} 13. Nh5 {[%clk 0:02:10.6]} 13... Nxh5 {[%clk 0:02:33.6]} 14.
Bxh5 {[%clk 0:02:10.4]} 14... f4 {[%clk 0:02:21.4]} 15. exf4 {[%clk 0:01:50.4]}
15... Bxf4 {[%clk 0:02:20.2]} 16. Bxf4 {[%clk 0:01:48.5]} 16... Rxf4 {[%clk
0:02:19.4]} 17. Ne2 {[%clk 0:01:42]} 17... Rf8 {[%clk 0:02:03.3]} 18. Ng3 {[%clk
0:01:38]} 18... c5 {[%clk 0:01:47.3]} 19. Rc1 {[%clk 0:01:33.4]} 19... c4 {[%clk
0:01:32.2]} 20. Bg4 {[%clk 0:01:32]} 20... Qe7 {[%clk 0:01:16.5]} 21. Re1 {[%clk
0:01:22.7]} 21... Bxg4 {[%clk 0:01:10.6]} 22. Qxg4 {[%clk 0:01:22.1]} 22... Nf6
{[%clk 0:01:10.1]} 23. Qg5 {[%clk 0:01:05.4]} 23... h6 {[%clk 0:00:51.5]} 24.
Qg6 {[%clk 0:00:59.5]} 24... Qf7 {[%clk 0:00:47.8]} 25. Qxf7+ {[%clk 0:00:46]}
25... Kxf7 {[%clk 0:00:44.1]} 26. Nf5 {[%clk 0:00:44.3]} 26... h5 {[%clk
0:00:29]} 27. Rc3 {[%clk 0:00:26.8]} 27... g6 {[%clk 0:00:27.4]} 28. Ne3 {[%clk
0:00:26]} 28... b5 {[%clk 0:00:22.9]} 29. Rf1 {[%clk 0:00:24.8]} 29... Ke6
{[%clk 0:00:17.2]} 30. Nc2 {[%clk 0:00:24.4]} 30... Ne8 {[%clk 0:00:07.8]} 31.
Re3 {[%clk 0:00:23.9]} 31... Nd6 {[%clk 0:00:07.6]} 32. f3 {[%clk 0:00:21.3]}
32... Kd7 {[%clk 0:00:05.4]} 33. Nb4 {[%clk 0:00:16.9]} 33... exf3 {[%clk
0:00:03.3]} 34. Rexf3 {[%clk 0:00:15.9]} 34... Rxf3 {[%clk 0:00:02.3]} 35. Rxf3
{[%clk 0:00:15.9]} 35... Nf5 {[%clk 0:00:02.3]} 36. Nxd5 {[%clk 0:00:14.4]}
36... Nxd4 {[%clk 0:00:01.9]} 37. Nb6+ {[%clk 0:00:14]} 1-0

[Event "*** SCC Grand Prix: Titled Tuesday Blitz"]
[Site "Chess.com"]
[Date "2020.08.11"]
[Round "5"]
[White "swimmerchess"]
[Black "Colchonero64"]
[Result "1-0"]
[WhiteElo "2844"]
[BlackElo "2912"]
[TimeControl "180+1"]
[EndTime "10:55:43 PDT"]
[Termination "swimmerchess won on time"]

1. e4 {[%clk 0:03:00.9]} 1... c5 {[%clk 0:02:59.5]} 2. Nf3 {[%clk 0:03:01.2]}
2... e6 {[%clk 0:02:59.6]} 3. d4 {[%clk 0:03:02.1]} 3... cxd4 {[%clk 0:02:59.8]}
4. Nxd4 {[%clk 0:03:03]} 4... a6 {[%clk 0:03:00.3]} 5. Nc3 {[%clk 0:03:03.3]}
5... b5 {[%clk 0:02:59.9]} 6. Bd3 {[%clk 0:03:03.3]} 6... Qb6 {[%clk 0:02:59.6]}
7. Nf3 {[%clk 0:03:02.9]} 7... Qc7 {[%clk 0:02:57.9]} 8. O-O {[%clk 0:03:02.7]}
8... Bb7 {[%clk 0:02:57.4]} 9. Re1 {[%clk 0:03:02.6]} 9... Be7 {[%clk
0:02:50.9]} 10. Bd2 {[%clk 0:03:02.6]} 10... Nc6 {[%clk 0:02:44.5]} 11. a4
{[%clk 0:03:02.5]} 11... bxa4 {[%clk 0:02:39.6]} 12. Rxa4 {[%clk 0:03:02.3]}
12... d6 {[%clk 0:02:24.9]} 13. Nd5 {[%clk 0:02:46.5]} 13... exd5 {[%clk
0:02:23]} 14. exd5 {[%clk 0:02:47.4]} 14... Ne5 {[%clk 0:02:23]} 15. Bc3 {[%clk
0:02:47.9]} 15... Nxf3+ {[%clk 0:01:39.2]} 16. Qxf3 {[%clk 0:02:46.9]} 16... Kf8
{[%clk 0:01:39.2]} 17. Qg3 {[%clk 0:01:29.4]} 17... Nf6 {[%clk 0:01:29.5]} 18.
Rae4 {[%clk 0:01:28.2]} 18... Re8 {[%clk 0:00:39.6]} 19. Bxf6 {[%clk 0:01:27.4]}
19... gxf6 {[%clk 0:00:39.8]} 20. Qf4 {[%clk 0:01:28.3]} 20... h5 {[%clk
0:00:33.5]} 21. Qf5 {[%clk 0:01:14.4]} 21... Bc8 {[%clk 0:00:31.7]} 22. Qf3
{[%clk 0:01:13.4]} 22... Bg4 {[%clk 0:00:26.9]} 23. Qf4 {[%clk 0:01:08.2]} 23...
Qd7 {[%clk 0:00:14]} 24. R1e3 {[%clk 0:01:01.1]} 24... Bf5 {[%clk 0:00:12.3]}
25. Rxe7 {[%clk 0:00:56.5]} 25... Rxe7 {[%clk 0:00:12.4]} 26. Bxf5 {[%clk
0:00:56.8]} 26... Rxe3 {[%clk 0:00:12.2]} 27. fxe3 {[%clk 0:00:50.9]} 27... Qe7
{[%clk 0:00:12.2]} 28. Kf2 {[%clk 0:00:47.3]} 28... Qe5 {[%clk 0:00:12.2]} 29.
Qf3 {[%clk 0:00:45.3]} 29... Qxb2 {[%clk 0:00:11.3]} 30. Bd3 {[%clk 0:00:45.7]}
30... a5 {[%clk 0:00:10.8]} 31. Qf4 {[%clk 0:00:45.3]} 31... Qe5 {[%clk
0:00:10.2]} 32. Qc4 {[%clk 0:00:45.4]} 32... Kg7 {[%clk 0:00:09.7]} 33. g3
{[%clk 0:00:42]} 33... Re8 {[%clk 0:00:09.5]} 34. e4 {[%clk 0:00:40.6]} 34... f5
{[%clk 0:00:09.6]} 35. exf5 {[%clk 0:00:39.1]} 35... Qe3+ {[%clk 0:00:09.7]} 36.
Kg2 {[%clk 0:00:38.4]} 36... Qd2+ {[%clk 0:00:09.9]} 37. Kh3 {[%clk 0:00:38.2]}
37... Re1 {[%clk 0:00:09.6]} 38. Qd4+ {[%clk 0:00:25.1]} 38... Kg8 {[%clk
0:00:09.8]} 39. f6 {[%clk 0:00:20.8]} 39... Qe3 {[%clk 0:00:08.7]} 40. Qc4
{[%clk 0:00:19.5]} 40... Qe8 {[%clk 0:00:02.2]} 41. Qf4 {[%clk 0:00:18.8]} 41...
Qe5 {[%clk 0:00:01.4]} 42. Qh6 {[%clk 0:00:19]} 1-0

[Event "*** SCC Grand Prix: Titled Tuesday Blitz"]
[Site "Chess.com"]
[Date "2020.08.11"]
[Round "5"]
[White "Gabix_94"]
[Black "Firouzja2003"]
[Result "1-0"]
[WhiteElo "2870"]
[BlackElo "3029"]
[TimeControl "180+1"]
[EndTime "10:55:44 PDT"]
[Termination "Gabix_94 won by checkmate"]

1. Nf3 {[%clk 0:03:00.9]} 1... d5 {[%clk 0:02:59.5]} 2. d4 {[%clk 0:02:59.8]}
2... Nf6 {[%clk 0:02:59.6]} 3. c4 {[%clk 0:03:00.2]} 3... e6 {[%clk 0:03:00]} 4.
Nc3 {[%clk 0:03:00.6]} 4... Be7 {[%clk 0:02:59.9]} 5. Bf4 {[%clk 0:02:59.4]}
5... O-O {[%clk 0:02:59.3]} 6. e3 {[%clk 0:02:59.6]} 6... Nbd7 {[%clk
0:02:59.5]} 7. c5 {[%clk 0:02:58.7]} 7... Ne4 {[%clk 0:02:59.9]} 8. Qc2 {[%clk
0:02:55.4]} 8... f5 {[%clk 0:02:59.3]} 9. h4 {[%clk 0:02:45.7]} 9... c6 {[%clk
0:02:57]} 10. Be2 {[%clk 0:02:43.7]} 10... b6 {[%clk 0:02:54.3]} 11. cxb6 {[%clk
0:02:41.2]} 11... axb6 {[%clk 0:02:54.8]} 12. Nxe4 {[%clk 0:02:31]} 12... fxe4
{[%clk 0:02:54.4]} 13. Ng5 {[%clk 0:02:31.4]} 13... Bb4+ {[%clk 0:02:23.5]} 14.
Kf1 {[%clk 0:02:29.7]} 14... e5 {[%clk 0:02:13.1]} 15. dxe5 {[%clk 0:02:20.7]}
15... Nc5 {[%clk 0:02:13]} 16. a3 {[%clk 0:02:13.5]} 16... h6 {[%clk 0:01:28]}
17. Rd1 {[%clk 0:01:52.8]} 17... hxg5 {[%clk 0:01:26.6]} 18. Bxg5 {[%clk
0:01:49.8]} 18... Qe8 {[%clk 0:01:24.3]} 19. axb4 {[%clk 0:01:47.8]} 19... Nd3
{[%clk 0:01:24.8]} 20. Bxd3 {[%clk 0:01:35.4]} 20... exd3 {[%clk 0:01:25]} 21.
Qd2 {[%clk 0:01:35.8]} 21... Qxe5 {[%clk 0:01:11.8]} 22. Bf4 {[%clk 0:01:33.9]}
22... Qe6 {[%clk 0:01:09.2]} 23. f3 {[%clk 0:01:30.5]} 23... Ba6 {[%clk
0:01:00.7]} 24. h5 {[%clk 0:01:26.4]} 24... d4 {[%clk 0:00:44.5]} 25. e4 {[%clk
0:01:20.3]} 25... Kh7 {[%clk 0:00:40.1]} 26. Kg1 {[%clk 0:01:17.8]} 26... c5
{[%clk 0:00:38.8]} 27. Rh4 {[%clk 0:01:12.9]} 27... c4 {[%clk 0:00:34.5]} 28.
Rc1 {[%clk 0:01:04.7]} 28... Bb5 {[%clk 0:00:33.6]} 29. Rg4 {[%clk 0:01:02.3]}
29... Ra2 {[%clk 0:00:30.7]} 30. Bg3 {[%clk 0:00:59.6]} 30... c3 {[%clk
0:00:23.2]} 31. Qg5 {[%clk 0:00:57.8]} 31... Qh6 {[%clk 0:00:23.8]} 32. Qxb5
{[%clk 0:00:52.3]} 32... d2 {[%clk 0:00:15.7]} 33. Rf1 {[%clk 0:00:48.5]} 33...
c2 {[%clk 0:00:16.3]} 34. Qd3 {[%clk 0:00:42.3]} 34... c1=Q {[%clk 0:00:15.6]}
35. e5+ {[%clk 0:00:42.4]} 35... Kh8 {[%clk 0:00:15.6]} 36. Rxd4 {[%clk
0:00:36.7]} 36... d1=Q {[%clk 0:00:10.2]} 37. Rxd1 {[%clk 0:00:34.8]} 37...
Qce3+ {[%clk 0:00:10.6]} 38. Qxe3 {[%clk 0:00:32.4]} 38... Qxe3+ {[%clk
0:00:10.6]} 39. Bf2 {[%clk 0:00:32.8]} 39... Qxe5 {[%clk 0:00:11]} 40. h6 {[%clk
0:00:32.5]} 40... Rxb2 {[%clk 0:00:04.5]} 41. Rd7 {[%clk 0:00:28.9]} 41... Kg8
{[%clk 0:00:01.4]} 42. Rxg7+ {[%clk 0:00:28.4]} 42... Kh8 {[%clk 0:00:02]} 43.
Bd4 {[%clk 0:00:27.5]} 43... Qe2 {[%clk 0:00:02.3]} 44. Rf7+ {[%clk 0:00:24.1]}
44... Kg8 {[%clk 0:00:02.3]} 45. Rg7+ {[%clk 0:00:21.5]} 45... Kh8 {[%clk
0:00:03]} 46. Re7+ {[%clk 0:00:21.6]} 46... Kg8 {[%clk 0:00:03.2]} 47. h7#
{[%clk 0:00:22.1]} 1-0

[Event "*** SCC Grand Prix: Titled Tuesday Blitz"]
[Site "Chess.com"]
[Date "2020.08.11"]
[Round "5"]
[White "Margarita2907"]
[Black "ItsCheckM8Mate"]
[Result "0-1"]
[WhiteElo "2096"]
[BlackElo "2315"]
[TimeControl "180+1"]
[EndTime "10:55:46 PDT"]
[Termination "ItsCheckM8Mate won on time"]

1. e4 {[%clk 0:03:00.9]} 1... e5 {[%clk 0:02:59.6]} 2. Nf3 {[%clk 0:02:59.5]}
2... Nc6 {[%clk 0:02:59.8]} 3. Bc4 {[%clk 0:02:59.1]} 3... Nf6 {[%clk
0:02:59.6]} 4. d3 {[%clk 0:02:56.9]} 4... h6 {[%clk 0:02:59.5]} 5. c3 {[%clk
0:02:50.1]} 5... d6 {[%clk 0:02:58.5]} 6. O-O {[%clk 0:02:49.2]} 6... g6 {[%clk
0:02:57.4]} 7. Nbd2 {[%clk 0:02:47]} 7... Bg7 {[%clk 0:02:57.7]} 8. Re1 {[%clk
0:02:46.5]} 8... O-O {[%clk 0:02:57.8]} 9. h3 {[%clk 0:02:45.5]} 9... d5 {[%clk
0:02:54.3]} 10. exd5 {[%clk 0:02:43.4]} 10... Nxd5 {[%clk 0:02:55.2]} 11. Nf1
{[%clk 0:02:32.8]} 11... Be6 {[%clk 0:02:52.4]} 12. Bb3 {[%clk 0:02:29.2]} 12...
Qd7 {[%clk 0:02:38.1]} 13. Ne3 {[%clk 0:01:59.2]} 13... Nxe3 {[%clk 0:02:05.9]}
14. fxe3 {[%clk 0:01:37.6]} 14... Rad8 {[%clk 0:01:59.3]} 15. Bxe6 {[%clk
0:01:34.7]} 15... Qxe6 {[%clk 0:01:58.5]} 16. Qe2 {[%clk 0:01:33.5]} 16... e4
{[%clk 0:01:48.6]} 17. Nd4 {[%clk 0:01:20.3]} 17... Qd5 {[%clk 0:01:42.7]} 18.
dxe4 {[%clk 0:01:12.9]} 18... Qxe4 {[%clk 0:01:41.8]} 19. Bd2 {[%clk 0:01:09.8]}
19... Rfe8 {[%clk 0:01:33.8]} 20. Qf3 {[%clk 0:01:02.8]} 20... Qd3 {[%clk
0:01:26.4]} 21. Rad1 {[%clk 0:00:59.7]} 21... Ne5 {[%clk 0:01:03.8]} 22. Qxb7
{[%clk 0:00:50.8]} 22... c5 {[%clk 0:01:02.2]} 23. Nc6 {[%clk 0:00:39.5]} 23...
Nxc6 {[%clk 0:00:52.3]} 24. Qxc6 {[%clk 0:00:38.8]} 24... c4 {[%clk 0:00:48]}
25. Qf3 {[%clk 0:00:32.9]} 25... Qc2 {[%clk 0:00:38.7]} 26. Bc1 {[%clk
0:00:28.8]} 26... Rd3 {[%clk 0:00:37]} 27. Rf1 {[%clk 0:00:24.9]} 27... Re7
{[%clk 0:00:35.4]} 28. Qf2 {[%clk 0:00:15.6]} 28... Qb1 {[%clk 0:00:26.1]} 29.
Rxd3 {[%clk 0:00:12.2]} 29... cxd3 {[%clk 0:00:21.8]} 30. Rd1 {[%clk 0:00:09.4]}
30... Rd7 {[%clk 0:00:16.9]} 31. Qd2 {[%clk 0:00:08]} 31... Qxa2 {[%clk
0:00:15.9]} 32. Rf1 {[%clk 0:00:06.2]} 32... Qb3 {[%clk 0:00:15]} 33. Rf4 {[%clk
0:00:05.2]} 33... a5 {[%clk 0:00:14.3]} 34. Re4 {[%clk 0:00:03.3]} 34... Kh7
{[%clk 0:00:13]} 35. Re8 {[%clk 0:00:02.8]} 35... Qc2 {[%clk 0:00:12.3]} 36. e4
{[%clk 0:00:02]} 36... h5 {[%clk 0:00:11]} 0-1

[Event "*** SCC Grand Prix: Titled Tuesday Blitz"]
[Site "Chess.com"]
[Date "2020.08.11"]
[Round "5"]
[White "WiktoriaPOL"]
[Black "Evachess2006"]
[Result "1-0"]
[WhiteElo "1875"]
[BlackElo "1635"]
[TimeControl "180+1"]
[EndTime "10:55:49 PDT"]
[Termination "WiktoriaPOL won by resignation"]

1. c4 {[%clk 0:03:00.9]} 1... e5 {[%clk 0:02:56.8]} 2. Nc3 {[%clk 0:02:58.8]}
2... Nc6 {[%clk 0:02:57.7]} 3. Nf3 {[%clk 0:02:58.1]} 3... d6 {[%clk 0:02:52.2]}
4. d4 {[%clk 0:02:56.6]} 4... exd4 {[%clk 0:02:43.7]} 5. Nxd4 {[%clk 0:02:57.5]}
5... Nf6 {[%clk 0:02:43.6]} 6. g3 {[%clk 0:02:54.5]} 6... Be7 {[%clk 0:02:40.4]}
7. Bg2 {[%clk 0:02:53.5]} 7... Bd7 {[%clk 0:02:37]} 8. Nc2 {[%clk 0:02:47.2]}
8... O-O {[%clk 0:02:34.4]} 9. O-O {[%clk 0:02:46.2]} 9... Re8 {[%clk
0:02:32.7]} 10. Ne3 {[%clk 0:02:44.1]} 10... Bf8 {[%clk 0:02:24.1]} 11. Ned5
{[%clk 0:02:41.7]} 11... Ne5 {[%clk 0:02:15.1]} 12. b3 {[%clk 0:02:35.6]} 12...
c6 {[%clk 0:02:10.8]} 13. Nxf6+ {[%clk 0:02:33.2]} 13... Qxf6 {[%clk 0:02:11.7]}
14. Bb2 {[%clk 0:02:31.9]} 14... Bf5 {[%clk 0:02:07]} 15. h3 {[%clk 0:02:07.7]}
15... Be7 {[%clk 0:01:56.1]} 16. f4 {[%clk 0:02:04.6]} 16... Nd7 {[%clk
0:01:52.6]} 17. e4 {[%clk 0:01:58.8]} 17... Bg6 {[%clk 0:01:46.9]} 18. f5 {[%clk
0:01:48.6]} 18... Qg5 {[%clk 0:01:37]} 19. fxg6 {[%clk 0:01:38.6]} 19... hxg6
{[%clk 0:01:37.9]} 20. Qf3 {[%clk 0:01:30.6]} 20... Ne5 {[%clk 0:01:33.1]} 21.
Qf4 {[%clk 0:01:22.4]} 21... Qxf4 {[%clk 0:01:23.2]} 22. gxf4 {[%clk 0:01:20.8]}
22... Nd3 {[%clk 0:01:19.5]} 23. Bc1 {[%clk 0:01:17.7]} 23... Nxc1 {[%clk
0:01:17.5]} 24. Raxc1 {[%clk 0:01:16.3]} 24... Bf6 {[%clk 0:01:14.3]} 25. Ne2
{[%clk 0:01:10.4]} 25... d5 {[%clk 0:01:07.9]} 26. cxd5 {[%clk 0:01:08.1]} 26...
cxd5 {[%clk 0:01:05.8]} 27. e5 {[%clk 0:01:07.8]} 27... Bd8 {[%clk 0:01:03.2]}
28. Bxd5 {[%clk 0:01:05.9]} 28... Bb6+ {[%clk 0:01:04.1]} 29. Kh2 {[%clk
0:01:03.6]} 29... g5 {[%clk 0:00:51.4]} 30. Bxb7 {[%clk 0:00:46.9]} 30... Rab8
{[%clk 0:00:49.4]} 31. Bc6 {[%clk 0:00:45.4]} 31... Re6 {[%clk 0:00:43.5]} 32.
Bd5 {[%clk 0:00:35.7]} 32... Rg6 {[%clk 0:00:41.9]} 33. f5 {[%clk 0:00:34.3]}
33... Rh6 {[%clk 0:00:41.2]} 34. Kg3 {[%clk 0:00:26.8]} 34... Rd8 {[%clk
0:00:30.8]} 35. Rfd1 {[%clk 0:00:22.7]} 35... Be3 {[%clk 0:00:20.8]} 36. Rc3
{[%clk 0:00:18.9]} 36... Bf4+ {[%clk 0:00:21.7]} 37. Nxf4 {[%clk 0:00:18.3]}
37... gxf4+ {[%clk 0:00:22]} 38. Kxf4 {[%clk 0:00:18.1]} 38... Rh4+ {[%clk
0:00:20.4]} 39. Kg3 {[%clk 0:00:17.1]} 39... Rb4 {[%clk 0:00:18.8]} 40. Bxf7+
{[%clk 0:00:16.4]} 40... Kxf7 {[%clk 0:00:17.4]} 41. Rxd8 {[%clk 0:00:16.9]}
41... Rb6 {[%clk 0:00:14.7]} 42. Rd7+ {[%clk 0:00:16]} 42... Kg8 {[%clk
0:00:12.9]} 43. Rc8+ {[%clk 0:00:13.9]} 43... Kh7 {[%clk 0:00:12]} 44. e6 {[%clk
0:00:14.3]} 44... Ra6 {[%clk 0:00:10]} 45. e7 {[%clk 0:00:14]} 45... Rxa2 {[%clk
0:00:09.4]} 1-0